Workbook

Sheet Лист1
A1: Школа | C1: МБОУ "Бегишевская СОШ имени М.Х.Хасанова" | F1: Утвердил: | G1: должность | H1: директор школы
A2: Типовое примерное меню приготавливаемых блюд | G2: фамилия | H2: И.Г.Зиатдинов
A3: Возрастная категория | E3: 7-11 лет | G3: дата | H3: 9 | I3: 1 | J3: 2024
H4: день | I4: месяц | J4: год
A5: Неделя | B5: День недели | C5: Прием пищи | D5: Раздел меню | E5: Блюда | F5: Вес блюда, г | G5: Белки | H5: Жиры | I5: Углеводы | J5: Калорийность | K5: № рецептуры | L5: Цена
A6: 1 | B6: 1 | C6: Завтрак | D6: Салат | E6: Салат " Зайка" | F6: 60 | G6: 0.99 | H6: 3.09 | I6: 6.66 | J6: 58.43 | K6: ТТК-473 | L6: 66.67
D7: Второе блюдо | E7: Колбасные изделия отварные (сосиски) с маслом | F7: 105 | G7: 12.41 | H7: 20.1 | I7: 0.48 | J7: 232.51 | K7: ттк № 1н
D8: Гарнир | E8: Каша гречневая вязкая | F8: 150 | G8: 4.65 | H8: 4.75 | I8: 24.86 | J8: 160.8 | K8: 510/04
D9: Гор. напиток | E9: Чай с лимоном | F9: 207 | G9: 0.27 | H9: 0.06 | I9: 15.28 | J9: 62.73 | K9: 686/04
D10: Хлеб | E10: Хлеб "Рябинушка" | F10: 30 | G10: 2.28 | H10: 0.27 | I10: 14.91 | J10: 71.19
D13: итого | F13: =SUM(F6:F12) -> 552 | G13: =SUM(G6:G12) -> 20.6 | H13: =SUM(H6:H12) -> 28.27 | I13: =SUM(I6:I12) -> 62.19 | J13: =SUM(J6:J12) -> 585.66 | L13: =SUM(L6:L12) -> 66.67
A14: =A6 -> 1 | B14: =B6 -> 1 | C14: Обед | D14: закуска
D15: 1 блюдо
D16: 2 блюдо
D17: гарнир
D18: напиток
D19: хлеб бел.
D20: хлеб черн.
D23: итого | F23: =SUM(F14:F22) -> 0 | G23: =SUM(G14:G22) -> 0 | H23: =SUM(H14:H22) -> 0 | I23: =SUM(I14:I22) -> 0 | J23: =SUM(J14:J22) -> 0 | L23: =SUM(L14:L22) -> 0
A24: =A6 -> 1 | B24: =B6 -> 1 | C24: Итого за день: | F24: =F13+F23 -> 552 | G24: =G13+G23 -> 20.6 | H24: =H13+H23 -> 28.27 | I24: =I13+I23 -> 62.19 | J24: =J13+J23 -> 585.66 | L24: 66.76
A25: 1 | B25: 2 | C25: Завтрак | D25: Салат | E25: Салат "Капуста квашенная" | F25: 60 | G25: 1.07 | H25: 3.01 | I25: 5.2 | J25: 52.21 | K25: ТТК-357н | L25: 66.67
D26: Второе блюдо | E26: Котлеты "Челнинские" с овощами (мекс.смесь) | F26: 90 | G26: 12.48 | H26: 17.12 | I26: 10.65 | J26: 246.64 | K26: ТТК-490н
D27: Гарнир | E27: Макаронные изделия отварные | F27: 150 | G27: 5.36 | H27: 4.37 | I27: 36.54 | J27: 206.89 | K27: 516/04
D28: Напиток | E28: Напиток "Плодово-ягодный" из сухофруктов | F28: 200 | G28: 0.5 | H28: 0.02 | I28: 19.43 | J28: 79.92 | K28: ТТК-257н
D29: Хлеб | E29: Хлеб "Рябинушка" | F29: 30 | G29: 2.28 | H29: 0.27 | I29: 14.91 | J29: 71.19
D32: итого | F32: =SUM(F25:F29) -> 530 | G32: =SUM(G25:G31) -> 21.69 | H32: =SUM(H25:H31) -> 24.79 | I32: =SUM(I25:I31) -> 86.73 | J32: =SUM(J25:J31) -> 656.85 | L32: 66.76
A33: =A25 -> 1 | B33: =B25 -> 2 | C33: Обед | D33: закуска
D34: 1 блюдо
D35: 2 блюдо
D36: гарнир
D37: напиток
D38: хлеб бел.
D39: хлеб черн.
D42: итого | F42: =SUM(F33:F41) -> 0 | G42: =SUM(G33:G41) -> 0 | H42: =SUM(H33:H41) -> 0 | I42: =SUM(I33:I41) -> 0 | J42: =SUM(J33:J41) -> 0 | L42: =SUM(L33:L41) -> 0
A43: =A25 -> 1 | B43: =B25 -> 2 | C43: Итого за день: | F43: =F32+F42 -> 530 | G43: =G32+G42 -> 21.69 | H43: =H32+H42 -> 24.79 | I43: =I32+I42 -> 86.73 | J43: =J32+J42 -> 656.85 | L43: =L32+L42 -> 66.76
A44: 1 | B44: 3 | C44: Завтрак | E44: Огурцы консервированные порциями | F44: 60 | G44: 3.06 | I44: 3.28 | J44: 25.33 | K44: ТТК-81н | L44: 66.76
D45: Второе блюдо | E45: Запеканка картофельная с мясом "Школьная"с/м | F45: 210 | G45: 15.02 | H45: 26.55 | I45: 24.2 | J45: 395.82 | K45: ТТК 28Н
D46: Гор. напиток | E46: Какао с молоком полусладкое | F46: 200 | G46: 3.39 | H46: 2.8 | I46: 16.98 | J46: 106.66 | K46: ТТК-198н
D47: Хлеб | E47: Хлеб "Рябинушка" | F47: 30 | G47: 2.28 | H47: 0.27 | I47: 14.91 | J47: 71.19
D51: итого | F51: =SUM(F44:F50) -> 500 | G51: =SUM(G44:G50) -> 23.75 | H51: =SUM(H44:H50) -> 29.62 | I51: =SUM(I44:I50) -> 59.37 | J51: =SUM(J44:J50) -> 599 | L51: =SUM(L44:L50) -> 66.76
A52: =A44 -> 1 | B52: =B44 -> 3 | C52: Обед | D52: закуска
D53: 1 блюдо
D54: 2 блюдо
D55: гарнир
D56: напиток
D57: хлеб бел.
D58: хлеб черн.
D61: итого | F61: =SUM(F52:F60) -> 0 | G61: =SUM(G52:G60) -> 0 | H61: =SUM(H52:H60) -> 0 | I61: =SUM(I52:I60) -> 0 | J61: =SUM(J52:J60) -> 0 | L61: =SUM(L52:L60) -> 0
A62: =A44 -> 1 | B62: =B44 -> 3 | C62: Итого за день: | F62: =F51+F61 -> 500 | G62: =G51+G61 -> 23.75 | H62: =H51+H61 -> 29.62 | I62: =I51+I61 -> 59.37 | J62: =J51+J61 -> 599 | L62: =L51+L61 -> 66.76
A63: 1 | B63: 4 | C63: Завтрак | D63: Фрукты | E63: Десерт фруктовый Яблоко | F63: 122 | G63: 0.49 | H63: 0.49 | I63: 10.98 | J63: 50.26 | K63: ТТК-495н | L63: 66.76
D64: Хол. закуска | E64: Яйцо вареное | F64: 48 | G64: 5.52 | H64: 5.04 | J64: 67.44 | K64: 337/04
D65: Гор.блюдо | E65: Каша молочная вязкая "Дружба" с маслом | F65: 205 | G65: 7.17 | H65: 7.04 | I65: 43.24 | J65: 264.97 | K65: ТТК-270
D66: Напиток | E66: Чай полусл.с молоком с шок."Сказка молочный" | F66: 215 | G66: 2.76 | H66: 6.55 | I66: 15.56 | J66: 132.23 | K66: ТТК-437
D67: Хлеб | E67: Хлеб "Рябинушка" | F67: 30 | G67: 2.28 | H67: 0.27 | I67: 14.91 | J67: 71.19
D70: итого | F70: =SUM(F63:F68) -> 620 | G70: =SUM(G63:G69) -> 18.22 | H70: =SUM(H63:H69) -> 19.39 | I70: =SUM(I63:I69) -> 84.69 | J70: =SUM(J63:J69) -> 586.09 | L70: =SUM(L63:L69) -> 66.76
A71: =A63 -> 1 | B71: =B63 -> 4 | C71: Обед | D71: закуска
D72: 1 блюдо
D73: 2 блюдо
D74: гарнир
D75: напиток
D76: хлеб бел.
D77: хлеб черн.
D80: итого | F80: =SUM(F71:F79) -> 0 | G80: =SUM(G71:G79) -> 0 | H80: =SUM(H71:H79) -> 0 | I80: =SUM(I71:I79) -> 0 | J80: =SUM(J71:J79) -> 0 | L80: =SUM(L71:L79) -> 0
A81: =A63 -> 1 | B81: =B63 -> 4 | C81: Итого за день: | F81: =F70+F80 -> 620 | G81: =G70+G80 -> 18.22 | H81: =H70+H80 -> 19.39 | I81: =I70+I80 -> 84.69 | J81: =J70+J80 -> 586.09 | L81: =L70+L80 -> 66.76
A82: 1 | B82: 5 | C82: Завтрак | D82: Салат | E82: Салат из моркови с сахаром | F82: 60 | G82: 1 | H82: 0.08 | I82: 8.28 | J82: 37.79 | K82: 62/11 | L82: 66.76
D83: Второе блюдо | E83: Жаркое из мякоти птицы | F83: 250 | G83: 26.83 | H83: 10.77 | I83: 19.92 | J83: 283.96 | K83: ттк №-819
D84: Напиток | E84: Напиток "Плодово-ягодный" из урюка с печеньем | F84: 236 | G84: 5.91 | H84: 11.52 | I84: 53.94 | J84: 343.1 | K84: ТТК№258к
D85: Хлеб | E85: Хлеб "Рябинушка" | F85: 30 | G85: 2.28 | H85: 0.27 | I85: 14.91 | J85: 71.19
D89: итого | F89: =SUM(F82:F88) -> 576 | G89: =SUM(G82:G88) -> 36.02 | H89: =SUM(H82:H88) -> 22.64 | I89: =SUM(I82:I88) -> 97.05 | J89: =SUM(J82:J85) -> 736.04 | L89: =SUM(L82:L88) -> 66.76
A90: =A82 -> 1 | B90: =B82 -> 5 | C90: Обед | D90: закуска
D91: 1 блюдо
D92: 2 блюдо
D93: гарнир
D94: напиток
D95: хлеб бел.
D96: хлеб черн.
D99: итого | F99: =SUM(F90:F98) -> 0 | G99: =SUM(G90:G98) -> 0 | H99: =SUM(H90:H98) -> 0 | I99: =SUM(I90:I98) -> 0 | J99: =SUM(J90:J98) -> 0 | L99: =SUM(L90:L98) -> 0
A100: =A82 -> 1 | B100: =B82 -> 5 | C100: Итого за день: | F100: =F89+F99 -> 576 | G100: =G89+G99 -> 36.02 | H100: =H89+H99 -> 22.64 | I100: =I89+I99 -> 97.05 | J100: =J89+J99 -> 736.04 | L100: =L89+L99 -> 66.76
A101: 1 | B101: 6 | C101: Завтрак | D101: Фрукты | E101: Десерт фруктовый Яблоко | F101: 140 | G101: 0.56 | H101: 0.56 | I101: 12.6 | J101: 57.68 | L101: 66.76
D102: Второе блюдо | E102: Биточки рыбные "Морячка" с овощами (фасоль струч.) | F102: 100 | G102: 9.99 | H102: 9.18 | I102: 5.48 | J102: 144.53 | K102: ТТК-89н
D103: Гарнир | E103: Каша рисовая вязкая | F103: 150 | G103: 2.31 | H103: 4.13 | I103: 22.97 | J103: 138.28 | K103: 510/04
D104: Напиток | E104: Компот "Плодово-ягодный" ассорти с блинч.со сгущен. молоком | F104: 263 | G104: 4.21 | H104: 9.52 | I104: 37.66 | J104: 253.19 | K104: ттк№356н
D105: Хлеб | E105: Хлеб "Рябинушка" | F105: 30 | G105: 2.28 | H105: 0.27 | I105: 14.91 | J105: 71.19
D108: итого | F108: =SUM(F101:F106) -> 683 | G108: =SUM(G101:G107) -> 19.35 | H108: =SUM(H101:H107) -> 23.66 | I108: =SUM(I101:I107) -> 93.62 | J108: =SUM(J101:J107) -> 664.87 | L108: =SUM(L101:L107) -> 66.76
A109: =A101 -> 1 | B109: 6 | C109: Обед | D109: закуска
D110: 1 блюдо
D111: 2 блюдо
D112: гарнир
D113: напиток
D114: хлеб бел.
D115: хлеб черн.
D118: итого | F118: =SUM(F109:F117) -> 0 | G118: =SUM(G109:G117) -> 0 | H118: =SUM(H109:H117) -> 0 | I118: =SUM(I109:I117) -> 0 | J118: =SUM(J109:J117) -> 0 | L118: =SUM(L109:L117) -> 0
A119: =A101 -> 1 | B119: =B101 -> 6 | C119: Итого за день: | F119: =F108+F118 -> 683 | G119: =G108+G118 -> 19.35 | H119: =H108+H118 -> 23.66 | I119: =I108+I118 -> 93.62 | J119: =J108+J118 -> 664.87 | L119: =L108+L118 -> 66.76
A120: 1 | B120: 7 | C120: Завтрак | D120: Салат | E120: Салат из белокочанной капусты | F120: 60 | G120: 1.17 | H120: 3.06 | I120: 6.33 | J120: 57.55 | K120: 20/2010 | L120: 66.76
D121: Второе блюдо | E121: Котлеты "Крестьянские" с овощами (мекс. смесью) | F121: 100 | G121: 11.81 | H121: 12.5 | I121: 11.56 | J121: 205.95 | K121: ттк№-202н
D122: Гарнир | E122: Каша гречневая вязкая | F122: 150 | G122: 4.65 | H122: 4.75 | I122: 24.86 | J122: 160.8 | K122: 510/04
D123: Напиток | E123: Кисель из концентрата полусладкий | F123: 200 | G123: 0.1 | H123: 0 | I123: 21.48 | J123: 86.3 | K123: ТТК-272н
D124: Хлеб | E124: Хлеб "Рябинушка" | F124: 30 | G124: 2.28 | H124: 0.27 | I124: 14.91 | J124: 71.19
D127: итого | F127: =SUM(F120:F124) -> 540 | G127: =SUM(G120:G126) -> 20.01 | H127: =SUM(H120:H126) -> 20.58 | I127: =SUM(I120:I126) -> 79.14 | J127: =SUM(J120:J126) -> 581.79 | L127: =SUM(L120:L126) -> 66.76
A128: =A120 -> 1 | B128: 7 | C128: Обед | D128: закуска
D129: 1 блюдо
D130: 2 блюдо
D131: гарнир
D132: напиток
D133: хлеб бел.
D134: хлеб черн.
D135: Салат-бар
D137: итого | F137: =SUM(F128:F136) -> 0 | G137: =SUM(G128:G136) -> 0 | H137: =SUM(H128:H136) -> 0 | I137: =SUM(I128:I136) -> 0 | J137: =SUM(J128:J136) -> 0 | L137: =SUM(L128:L136) -> 0
A138: =A120 -> 1 | B138: =B120 -> 7 | C138: Итого за день: | F138: =F127+F137 -> 540 | G138: =G127+G137 -> 20.01 | H138: =H127+H137 -> 20.58 | I138: =I127+I137 -> 79.14 | J138: =J127+J137 -> 581.79 | L138: =L127+L137 -> 66.76
A139: 1 | B139: 8 | C139: Завтрак | D139: Фрукты | E139: Десерт фруктовый Яблоко | F139: 150 | G139: 0.6 | H139: 0.6 | I139: 13.5 | J139: 61.8 | K139: ТТК-495н | L139: 66.76
D140: Хол. закуска | E140: Яйцо вареное | F140: 48 | G140: 5.52 | H140: 5.04 | I140: 0 | J140: 67.44 | K140: 337/04
D141: Гор.блюдо | E141: Каша молочная мультизлаковая (вязкая) с маслом | F141: 203 | G141: 6.76 | H141: 6.55 | I141: 27.96 | J141: 197.87 | K141: ТТК-360н
D142: Напиток | E142: Чай "Витаминный" полусл. с блинчиком со сгущ.молок | F142: 263 | G142: 4.96 | H142: 9.57 | I142: 38.62 | J142: 260.51 | K142: ттк№253н
D143: Хлеб | E143: Хлеб "Рябинушка" | F143: 30 | G143: 2.28 | H143: 0.27 | I143: 14.91 | J143: 71.19
D146: итого | F146: =SUM(F139:F145) -> 694 | G146: =SUM(G139:G145) -> 20.12 | H146: =SUM(H139:H145) -> 22.03 | I146: =SUM(I139:I145) -> 94.99 | J146: =SUM(J139:J145) -> 658.81 | L146: =SUM(L139:L145) -> 66.76
A147: =A139 -> 1 | B147: 8 | C147: Обед | D147: закуска
D148: 1 блюдо
D149: 2 блюдо
D150: гарнир
D151: напиток
D152: хлеб бел.
D153: хлеб черн.
D156: итого | F156: =SUM(F147:F155) -> 0 | G156: =SUM(G147:G155) -> 0 | H156: =SUM(H147:H155) -> 0 | I156: =SUM(I147:I155) -> 0 | J156: =SUM(J147:J155) -> 0 | L156: =SUM(L147:L155) -> 0
A157: =A139 -> 1 | B157: =B139 -> 8 | C157: Итого за день: | F157: =F146+F156 -> 694 | G157: =G146+G156 -> 20.12 | H157: =H146+H156 -> 22.03 | I157: =I146+I156 -> 94.99 | J157: =J146+J156 -> 658.81 | L157: =L146+L156 -> 66.76
A158: 1 | B158: 9 | C158: Завтрак | D158: Салат | E158: Салат " Солнышко" | F158: 60 | G158: 0.75 | H158: 6.12 | I158: 8.77 | J158: 93.14 | K158: ттк-66 | L158: 66.76
D159: Воторое блюдо | E159: Мякоть птицы тушеная в соусе | F159: 100 | G159: 23.64 | H159: 4.6 | I159: 3.79 | J159: 151.08 | K159: ТТК-53к
D160: Гарнир | E160: Макаронные изделия отварные | F160: 150 | G160: 5.36 | H160: 4.37 | I160: 36.54 | J160: 206.89 | K160: 516/04
D161: Напиток | E161: Напиток "Плодово-ягодный" из урюка | F161: 200 | G161: 0 | H161: 0 | I161: 9.98 | J161: 39.92 | K161: ТТК№258к
D162: Хлеб | E162: Хлеб "Рябинушка" | F162: 30 | G162: 2.28 | H162: 0.27 | I162: 14.91 | J162: 71.19
D165: итого | F165: =SUM(F158:F164) -> 540 | G165: =SUM(G158:G164) -> 32.03 | H165: =SUM(H158:H164) -> 15.36 | I165: =SUM(I158:I164) -> 73.99 | J165: =SUM(J158:J164) -> 562.22 | L165: =SUM(L158:L164) -> 66.76
A166: =A158 -> 1 | B166: =B158 -> 9 | C166: Обед | D166: закуска
D167: 1 блюдо
D168: 2 блюдо
D169: гарнир
D170: напиток
D171: хлеб бел.
D172: хлеб черн.
D175: итого | F175: =SUM(F166:F174) -> 0 | G175: =SUM(G166:G174) -> 0 | H175: =SUM(H166:H174) -> 0 | I175: =SUM(I166:I174) -> 0 | J175: =SUM(J166:J174) -> 0 | L175: =SUM(L166:L174) -> 0
A176: =A158 -> 1 | B176: =B158 -> 9 | C176: Итого за день: | F176: =F165+F175 -> 540 | G176: =G165+G175 -> 32.03 | H176: =H165+H175 -> 15.36 | I176: =I165+I175 -> 73.99 | J176: =J165+J175 -> 562.22 | L176: =L165+L175 -> 66.76
A177: 1 | B177: 10 | C177: Завтрак | D177: Фрукты | E177: Десерт фруктовый Яблоко | F177: 150 | G177: 0.6 | H177: 0.6 | I177: 13.5 | J177: 61.8 | K177: ТТК-495н | L177: 66.76
D178: Салат | E178: Салат из свеклы отварной | F178: 60 | G178: 1.16 | H178: 3.67 | I178: 6.82 | J178: 65 | K178: 52/11
D179: Второе блюдо | E179: Палочки рыбо-крупяные из минтая с овощ(фасоль стр) | F179: 52 | G179: 10.75 | H179: 7.84 | I179: 15.74 | J179: 176.51 | K179: ТТК491н
D180: Гарнир | E180: Пюре картофельное | F180: 150 | G180: 3.31 | H180: 4.6 | I180: 15.04 | J180: 114.76 | K180: 520/04
D181: Напиток | E181: Чай с лимоном | F181: 207 | G181: 0.27 | H181: 0.06 | I181: 15.28 | J181: 62.73 | K181: 686/04
D182: Хлеб | E182: Хлеб "Рябинушка" | F182: 30 | G182: 2.28 | H182: 0.27 | I182: 14.91 | J182: 71.19
D184: итого | F184: =SUM(F177:F182) -> 649 | G184: =SUM(G177:G183) -> 18.37 | H184: =SUM(H177:H183) -> 17.04 | I184: =SUM(I177:I183) -> 81.29 | J184: =SUM(J177:J183) -> 551.99 | L184: =SUM(L177:L183) -> 66.76
A185: =A177 -> 1 | B185: =B177 -> 10 | C185: Обед | D185: закуска
D186: 1 блюдо
D187: 2 блюдо
D188: гарнир
D189: напиток
D190: хлеб бел.
D191: хлеб черн.
D194: итого | F194: =SUM(F185:F193) -> 0 | G194: =SUM(G185:G193) -> 0 | H194: =SUM(H185:H193) -> 0 | I194: =SUM(I185:I193) -> 0 | J194: =SUM(J185:J193) -> 0 | L194: =SUM(L185:L193) -> 0
A195: =A177 -> 1 | B195: =B177 -> 10 | C195: Итого за день: | F195: =F184+F194 -> 649 | G195: =G184+G194 -> 18.37 | H195: =H184+H194 -> 17.04 | I195: =I184+I194 -> 81.29 | J195: =J184+J194 -> 551.99 | L195: =L184+L194 -> 66.76
A196: 1 | B196: 11 | C196: Завтрак | D196: Фрукты | E196: Десерт фруктовый Яблоко | F196: 145 | G196: 0.58 | H196: 0.58 | I196: 13.05 | J196: 59.74 | K196: ТТК-495н | L196: 66.76
D197: Второе блюдо | E197: Плов из говядины | F197: 250 | G197: 19.7 | H197: 16.23 | I197: 51.77 | J197: 431.91 | K197: ТТК №1021
E198: Огурцы консервированные порциями(доп.гарнир) | F198: 20 | G198: 1.02 | H198: 0 | I198: 1.09 | J198: 8.44 | K198: ТТК-81н
D199: Напиток | E199: Напиток "Плодово-ягодный" из сухофруктов | F199: 200 | G199: 0.5 | H199: 0.02 | I199: 19.43 | J199: 79.92 | K199: ТТК-257н
D200: Хлеб | E200: Хлеб "Рябинушка" | F200: 30 | G200: 2.28 | H200: 0.27 | I200: 14.91 | J200: 71.19
D203: итого | F203: =SUM(F196:F201) -> 645 | G203: =SUM(G196:G202) -> 24.08 | H203: =SUM(H196:H202) -> 17.1 | I203: =SUM(I196:I202) -> 100.25 | J203: =SUM(J196:J202) -> 651.2 | L203: =SUM(L196:L202) -> 66.76
A204: =A196 -> 1 | B204: =B196 -> 11 | C204: Обед | D204: закуска
D205: 1 блюдо
D206: 2 блюдо
D207: гарнир
D208: напиток
D209: хлеб бел.
D210: хлеб черн.
D213: итого | F213: =SUM(F204:F212) -> 0 | G213: =SUM(G204:G212) -> 0 | H213: =SUM(H204:H212) -> 0 | I213: =SUM(I204:I212) -> 0 | J213: =SUM(J204:J212) -> 0 | L213: =SUM(L204:L212) -> 0
A214: =A196 -> 1 | B214: =B196 -> 11 | C214: Итого за день: | F214: =F203+F213 -> 645 | G214: =G203+G213 -> 24.08 | H214: =H203+H213 -> 17.1 | I214: =I203+I213 -> 100.25 | J214: =J203+J213 -> 651.2 | L214: =L203+L213 -> 66.76
A215: 1 | B215: 12 | C215: Завтрак | D215: салат | E215: Винегрет из овощей | F215: 60 | G215: 1.51 | H215: 4.26 | I215: 5.42 | J215: 66.09 | K215: ТТК-92н | L215: 66.76
D216: второе блюдо | E216: Пельмени мясные отварные с маслом | F216: 203 | G216: 16.68 | H216: 29.92 | I216: 35.19 | J216: 476.81 | K216: 392/11
D217: напиток | E217: Чай полусладкий с печеньем сахарным | F217: 236 | G217: 5.6 | H217: 11.5 | I217: 39.62 | J217: 284.37 | K217: ТТК-475
D218: хлеб | E218: Хлеб "Рябинушка" | F218: 30 | G218: 2.28 | H218: 0.27 | I218: 14.91 | J218: 71.19
D221: Салат-бар
D222: итого | F222: =SUM(F215:F221) -> 529 | G222: =SUM(G215:G221) -> 26.07 | H222: =SUM(H215:H221) -> 45.95 | I222: =SUM(I215:I221) -> 95.14 | J222: =SUM(J215:J221) -> 898.46 | L222: =SUM(L215:L221) -> 66.76
A223: =A215 -> 1 | B223: =B215 -> 12 | C223: Обед | D223: закуска
D224: 1 блюдо
D225: 2 блюдо
D226: гарнир
D227: напиток
D228: хлеб бел.
D229: хлеб черн.
D232: итого | F232: =SUM(F223:F231) -> 0 | G232: =SUM(G223:G231) -> 0 | H232: =SUM(H223:H231) -> 0 | I232: =SUM(I223:I231) -> 0 | J232: =SUM(J223:J231) -> 0 | L232: =SUM(L223:L231) -> 0
A233: =A215 -> 1 | B233: =B215 -> 12 | C233: Итого за день: | F233: =F222+F232 -> 529 | G233: =G222+G232 -> 26.07 | H233: =H222+H232 -> 45.95 | I233: =I222+I232 -> 95.14 | J233: =J222+J232 -> 898.46 | L233: =L222+L232 -> 66.76
C234: Среднее значение за период: | F234: =AVERAGE(F24,F43,F62,F81,F100,F119,F138,F157,F176,F195,F214,F233) -> 588.1666667 | G234: =AVERAGE(G24,G43,G62,G81,G100,G119,G138,G157,G176,G195,G214,G233) -> 23.36 | H234: =AVERAGE(H24,H43,H62,H81,H100,H119,H138,H157,H176,H195,H214,H233) -> 23.87 | I234: =AVERAGE(I24,I43,I62,I81,I100,I119,I138,I157,I176,I195,I214,I233) -> 84.04 | J234: =AVERAGE(J24,J43,J62,J81,J100,J119,J138,J157,J176,J195,J214,J233) -> 644.42 | L234: =(L62+L81+L100+L119+L138+L157+L176+L195+L214+L233)/(IF(L62=0,0,1)+IF(L81=0,0,1)+IF(L100=0,0,1)+IF(L119=0,0,1)+IF(L138=0,0,1)+IF(L157=0,0,1)+IF(L176=0,0,1)+IF(L195=0,0,1)+IF(L214=0,0,1)+IF(L233=0,0,1)) -> 66.76
